bitfinex-derivatives/quotes_BNBF0:USTF0_20230901
["timestamp","ask_amount","ask_price","bid_price","bid_amount"]
[1693604004166,0.17250545,213.4,212.9,0.86280455]
[1693604004370,0.17250545,213.4,212.91,0.86280455]
[1693604004571,0.17250545,213.4,212.92,0.86280455]
[1693604004771,0.17250545,213.4,212.93,0.86280455]
[1693604004972,0.17250545,213.4,212.94,0.86280455]
[1693604005172,0.17250545,213.4,212.9,0.86280455]
[1693604005372,0.17250545,213.4,212.91,0.86280997]
[1693604005574,0.17250545,213.4,212.92,0.86280997]
[1693604005773,0.17250545,213.4,212.93,0.86280997]
[1693604005973,0.17250545,213.4,212.94,0.86280997]
[1693604006269,0.17250545,213.4,212.89,0.07697569]
[1693604006575,0.17250545,213.4,212.9,0.86281009]
[1693604009577,0.17250545,213.4,212.9,0.93978578]
[1693604009777,0.17250545,213.4,212.91,0.86281009]
[1693604015471,5.26681511,213.4,212.91,0.86281009]
[1693604015677,0.17250545,213.39,212.91,0.86281009]
[1693604016576,0.17250545,213.39,212.91,0.93978578]
[1693604016878,0.17250545,213.39,212.92,0.86281009]
[1693604020085,5.26681511,213.39,212.92,0.86281009]
[1693604020280,0.17250545,213.38,212.92,0.86281009]
[1693604020584,0.17250545,213.38,212.92,0.93978578]
[1693604020784,0.17250545,213.38,212.93,0.86281009]
[1693604022386,0.17250545,213.38,212.93,0.93978578]
[1693604022682,0.17250545,213.38,212.94,0.86281009]
[1693604022880,5.26681511,213.38,212.94,0.86281009]
[1693604023082,0.17250545,213.37,212.94,0.86281009]
[1693604023682,0.17250545,213.37,212.94,0.93978578]
[1693604023882,0.17250545,213.37,212.94,0.07697569]
[1693604024486,5.26681511,213.37,212.95,0.07697569]
[1693604024687,0.17250545,213.36,212.95,0.07697569]
[1693604024883,0.17250545,213.36,212.94,0.07697569]
[1693604025590,5.09430966,213.35,212.96,0.07697569]
[1693604025784,0.17250545,213.34,212.96,0.07697569]
[1693604053914,0.17250545,213.34,213.0,0.07697569]
[1693604054110,0.17250545,213.38,213.01,0.07697569]
[1693604054315,0.17250545,213.37,213.01,0.07697569]
[1693604054514,0.17250545,213.36,213.01,0.07697569]
[1693604054821,0.17250545,213.35,212.99,0.07697569]
[1693604055020,0.17250545,213.34,212.99,0.07697569]
[1693604055217,0.17250545,213.4,212.99,0.07697569]
[1693604055620,0.17250545,213.4,212.98,0.07697569]
[1693604055815,0.17250545,213.41,212.99,0.86257843]
[1693604056017,5.09430966,213.42,212.99,0.86257843]
[1693604056018,0.17250545,213.4,212.99,0.86257843]
[1693604056217,0.17250545,213.41,212.99,0.86257843]
[1693604056418,0.17250545,213.4,212.99,0.86257843]
[1693604056618,0.17250545,213.39,212.99,0.86257843]
[1693604056918,0.17250545,213.38,212.99,0.86257843]
[1693604057119,0.17250545,213.37,212.99,0.86257843]
[1693604057319,0.17250545,213.41,212.99,0.86257843]
[1693604057721,0.17250545,213.4,212.99,0.86257843]
[1693604057917,0.17250545,213.42,212.97,0.07697569]
[1693604058118,0.17250545,213.41,212.98,0.86258796]
[1693604058414,0.17250545,213.4,212.98,0.86258796]
[1693604058618,0.17250545,213.39,212.98,0.86258796]
[1693604058920,0.17250545,213.38,212.98,0.86258796]
[1693604059114,0.17250545,213.42,212.98,0.86258796]
[1693604059319,0.17250545,213.41,212.98,0.86258796]
[1693604059517,0.17250545,213.4,212.98,0.86258796]
[1693604059714,0.17250545,213.39,212.98,0.86258796]
[1693604059914,0.17250545,213.42,212.98,0.86258796]
[1693604060112,0.17250545,213.41,212.98,0.86258796]
[1693604060319,0.17250545,213.4,212.98,0.86258796]
[1693604060515,0.17250545,213.39,212.98,0.86258796]
[1693604060719,0.17250545,213.43,212.98,0.86258796]
[1693604060921,0.17250545,213.42,212.98,0.86258796]
[1693604061220,0.17250545,213.41,212.99,0.86258796]
[1693604061420,0.17250545,213.43,212.97,0.86258796]
[1693604061615,0.17250545,213.42,212.98,0.86258358]
[1693604061818,0.17250545,213.43,212.99,0.86258358]
[1693604062015,0.17250545,213.42,212.96,0.07697569]
[1693604062321,0.17250545,213.41,212.97,0.8625816]
[1693604062520,0.17250545,213.43,212.97,0.8625816]
[1693604062720,0.17250545,213.42,212.97,0.8625816]
[1693604062916,0.17250545,213.41,212.97,0.8625816]
[1693604063116,0.17250545,213.4,212.97,0.8625816]
[1693604063321,0.17250545,213.44,212.97,0.8625816]
[1693604063520,5.09430966,213.45,212.97,0.8625816]
[1693604063521,0.17250545,213.43,212.97,0.8625816]
[1693604063723,0.17250545,213.42,212.97,0.8625816]
[1693604063922,0.17250545,213.41,212.97,0.8625816]
[1693604064115,0.17250545,213.44,212.97,0.8625816]
[1693604064319,0.17250545,213.43,212.97,0.8625816]
[1693604064515,0.17250545,213.44,212.97,0.8625816]
[1693604064721,0.17250545,213.43,212.97,0.8625816]
[1693604064922,0.17250545,213.42,212.97,0.8625816]
[1693604065115,0.17250545,213.41,212.97,0.8625816]
[1693604065319,0.17250545,213.4,212.97,0.8625816]
[1693604065517,0.17250545,213.39,212.97,0.8625816]
[1693604065716,0.17250545,213.44,212.97,0.8625816]
[1693604067524,0.17250545,213.45,212.97,0.8625816]
[1693604067824,0.17250545,213.44,212.97,0.8625816]
[1693604068125,0.17250545,213.43,212.97,0.8625816]
[1693604068326,0.17250545,213.45,212.97,0.8625816]
[1693604068626,0.17250545,213.44,212.97,0.8625816]
[1693604068826,0.17250545,213.45,212.96,0.8625816]
[1693604069022,0.17250545,213.44,212.97,0.8625816]
[1693604069226,0.17250545,213.43,212.98,0.8625816]
[1693604069429,0.17250545,213.42,212.99,0.8625816]
[1693604069728,0.17250545,213.41,212.95,0.07697569]
[1693604069927,0.17250545,213.45,212.96,0.8625695]
[1693604070129,0.17250545,213.44,212.96,0.8625695]
[1693604070325,0.17250545,213.43,212.96,0.8625695]
[1693604070528,0.17250545,213.42,212.96,0.8625695]
[1693604070724,0.17250545,213.41,212.96,0.8625695]
[1693604070925,0.17250545,213.4,212.96,0.8625695]
[1693604071126,0.17250545,213.45,212.96,0.8625695]
[1693604071425,0.17250545,213.44,212.96,0.8625695]
[1693604071628,0.17250545,213.43,212.96,0.8625695]
[1693604071828,0.17250545,213.42,212.96,0.8625695]
[1693604072028,0.17250545,213.41,212.96,0.8625695]
[1693604072229,5.09430966,213.46,212.96,0.8625695]
[1693604072230,0.17250545,213.4,212.96,0.8625695]
[1693604072431,0.17250545,213.45,212.96,0.8625695]
[1693604072730,0.17250545,213.44,212.96,0.8625695]
[1693604072924,0.17250545,213.43,212.96,0.8625695]
[1693604073130,0.17250545,213.42,212.96,0.8625695]
[1693604073330,0.17250545,213.41,212.96,0.8625695]
[1693604073530,0.17250545,213.45,212.96,0.8625695]
[1693604073731,0.17250545,213.44,212.96,0.8625695]
[1693604074030,0.17250545,213.43,212.96,0.8625695]
[1693604074231,0.17250545,213.45,212.96,0.8625695]
[1693604074431,0.17250545,213.44,212.96,0.8625695]
[1693604074625,0.17250545,213.43,212.96,0.8625695]
[1693604074826,0.17250545,213.42,212.96,0.8625695]
[1693604075028,0.17250545,213.41,212.96,0.8625695]
[1693604075233,0.17250545,213.45,212.96,0.8625695]
[1693604075427,0.17250545,213.44,212.96,0.8625695]
[1693604075631,0.17250545,213.45,212.96,0.8625695]
[1693604075832,0.17250545,213.44,212.96,0.93954519]
[1693604076131,0.17250545,213.43,212.97,0.8625695]
[1693604076332,0.17250545,213.42,212.97,0.8625695]
[1693604076534,0.17250545,213.41,212.97,0.8625695]
[1693604076726,0.17250545,213.4,212.97,0.8625695]
[1693604077032,0.17250545,213.39,212.97,0.8625695]
[1693604077231,0.17250545,213.38,212.97,0.8625695]
[1693604077428,0.17250545,213.37,212.97,0.8625695]
[1693604077627,0.17250545,213.36,212.97,0.8625695]
[1693604077831,0.17250545,213.44,212.97,0.8625695]
[1693604078132,0.17250545,213.43,212.97,0.8625695]
[1693604078432,0.17250545,213.42,212.97,0.8625695]
[1693604078633,0.17250545,213.41,212.97,0.8625695]
[1693604078833,0.17250545,213.4,212.97,0.8625695]
[1693604079026,0.17250545,213.45,212.97,0.8625695]
[1693604079230,0.17250545,213.44,212.97,0.8625695]
[1693604079429,0.17250545,213.45,212.97,0.8625695]
[1693604079631,0.17250545,213.44,212.97,0.8625695]
[1693604080734,0.17250545,213.44,212.97,0.93954519]
[1693604080935,0.17250545,213.44,212.98,0.8625695]
[1693604082835,0.17250545,213.44,212.98,0.93954519]
[1693604083030,0.17250545,213.44,212.99,0.8625695]
[1693604084842,0.17250545,213.44,212.99,0.93954519]
[1693604085041,0.17250545,213.44,213.0,0.8625695]
[1693604085739,5.26681511,213.44,213.0,0.8625695]
[1693604085938,0.17250545,213.43,213.0,0.8625695]
[1693604086639,0.17250545,213.43,213.0,0.93954519]
[1693604086841,0.17250545,213.43,213.0,0.07697569]
[1693604087645,5.26681511,213.43,213.01,0.07697569]
[1693604087845,0.17250545,213.42,213.01,0.07697569]
[1693604088644,5.26681511,213.42,213.02,0.07697569]
[1693604088845,0.17250545,213.41,213.02,0.07697569]
[1693604093551,0.17250545,213.41,213.01,0.07697569]
[1693604097148,0.17250545,213.41,213.02,0.07697569]
[1693604098648,0.17250545,213.4,213.02,0.07697569]
[1693604098953,0.17250545,213.39,213.02,0.07697569]
[1693604099149,0.17250545,213.42,213.02,0.07697569]
[1693604099345,0.17250545,213.41,213.02,0.07697569]
[1693604099545,0.17250545,213.42,213.02,0.07697569]
[1693604100044,5.26681511,213.42,213.02,0.07697569]
[1693604100250,0.17250545,213.41,213.02,0.07697569]
[1693604104553,0.17250545,213.41,213.01,0.07697569]
[1693604104952,0.17250545,213.41,213.02,0.07697569]
[1693604105556,0.17250545,213.41,213.01,0.07697569]
[1693604107657,0.17250545,213.41,213.02,0.07697569]
[1693604111962,0.17250545,213.41,213.01,0.07697569]
[1693604112954,5.26681511,213.41,213.01,0.07697569]
[1693604113158,0.17250545,213.4,213.01,0.07697569]
[1693604117062,0.17250545,213.4,213.02,0.07697569]
[1693604120467,0.17250545,213.4,212.88,3.78110326]
[1693604120659,20.4256393,214.48,210.65,16.4217508]
[1693604120861,5.10640983,213.41,213.02,0.07697695]
[1693604121064,0.17250545,213.4,213.02,0.07697695]
[1693604124669,0.17250545,213.4,213.01,0.07697695]
[1693604134876,0.17250545,213.4,213.02,0.07697695]
[1693604142977,0.17250545,213.4,213.03,0.07697695]
[1693604143175,0.17250545,213.4,213.02,0.07697695]
[1693604160695,5.27891528,213.4,213.02,0.07697695]
[1693604160893,0.17250545,213.39,213.02,0.07697695]
[1693604164791,0.17250545,213.39,213.01,0.07697695]
[1693604170701,0.17250545,213.39,213.0,0.07697695]
[1693604170997,0.17250545,213.39,213.01,0.07697695]
[1693604171998,0.17250545,213.39,213.0,0.07697695]
[1693604172301,0.17250545,213.39,213.01,0.07697695]
[1693604173299,0.17250545,213.39,213.0,0.07697695]
[1693604173496,0.17250545,213.39,213.01,0.07697695]
[1693604173697,0.17250545,213.38,213.0,0.07697695]
[1693604173896,0.17250545,213.37,213.0,0.07697695]
[1693604174105,0.17250545,213.4,213.0,0.07697695]
[1693604174296,0.17250545,213.39,213.0,0.07697695]
[1693604174494,0.17250545,213.38,213.0,0.07697695]
[1693604174697,0.17250545,213.4,213.01,0.07697695]
[1693604174899,5.10640983,213.41,213.01,0.07697695]
[1693604174900,0.17250545,213.39,213.01,0.07697695]
[1693604175099,0.17250545,213.38,213.01,0.07697695]
[1693604175401,0.17250545,213.37,213.01,0.07697695]
[1693604175597,0.17250545,213.36,213.01,0.07697695]
[1693604175802,0.17250545,213.4,213.01,0.07697695]
[1693604176102,0.17250545,213.39,213.01,0.07697695]
[1693604176297,0.17250545,213.4,213.01,0.07697695]
[1693604176502,0.17250545,213.39,213.01,0.07697695]
[1693604176702,0.17250545,213.38,213.01,0.07697695]
[1693604176897,0.17250545,213.4,213.01,0.07697695]
[1693604177102,0.17250545,213.39,213.01,0.07697695]
[1693604177302,0.17250545,213.4,213.01,0.07697695]
[1693604177503,0.17250545,213.39,213.01,0.07697695]
[1693604177703,0.17250545,213.38,213.01,0.07697695]
[1693604177904,0.17250545,213.37,213.01,0.07697695]
[1693604178203,0.17250545,213.36,213.01,0.07697695]
[1693604178404,0.17250545,213.35,213.01,0.07697695]
[1693604178598,0.17250545,213.4,213.0,0.07697695]
[1693604178797,0.17250545,213.39,213.0,0.07697695]
[1693604178998,0.17250545,213.38,213.01,0.07697695]
[1693604179200,0.17250545,213.4,213.01,0.07697695]
[1693604179398,0.17250545,213.39,213.01,0.07697695]
[1693604179602,0.17250545,213.38,213.01,0.07697695]
[1693604179801,0.17250545,213.37,213.01,0.07697695]
[1693604179999,0.17250545,213.36,213.01,0.07697695]
[1693604180202,0.17250545,213.4,213.01,0.07697695]
[1693604180398,0.17250545,213.39,213.01,0.07697695]
[1693604180608,0.17250545,213.38,213.01,0.07697695]
[1693604180801,0.17250545,213.4,213.01,0.07697695]
[1693604181004,0.17250545,213.37,213.01,0.07697695]
[1693604181207,0.17250545,213.36,213.01,0.07697695]
[1693604181405,0.17250545,213.4,213.01,0.07697695]
[1693604181599,0.17250545,213.39,213.01,0.07697695]
[1693604181801,0.17250545,213.38,213.01,0.07697695]
[1693604182001,0.17250545,213.4,213.01,0.07697695]
[1693604182300,0.17250545,213.39,213.01,0.07697695]
[1693604182505,0.17250545,213.4,213.01,0.07697695]
[1693604182708,0.17250545,213.39,213.01,0.07697695]
[1693604183007,0.17250545,213.38,213.01,0.07697695]
[1693604183208,0.17250545,213.4,213.01,0.07697695]
[1693604183406,0.17250545,213.39,213.01,0.07697695]
[1693604183607,0.17250545,213.38,213.01,0.07697695]
[1693604183907,0.17250545,213.37,213.01,0.07697695]
[1693604184107,0.17250545,213.36,213.01,0.07697695]
[1693604184408,0.17250545,213.35,213.01,0.07697695]
[1693604184707,0.17250545,213.34,213.01,0.07697695]
[1693604184909,0.17250545,213.33,213.01,0.07697695]
[1693604185108,0.17250545,213.32,213.01,0.07697695]
[1693604185307,0.17250545,213.4,213.01,0.07697695]
[1693604185504,0.17250545,213.39,213.01,0.07697695]
[1693604185704,0.17250545,213.38,213.01,0.07697695]
[1693604185904,0.17250545,213.37,213.01,0.07697695]
[1693604186104,0.17250545,213.4,213.01,0.07697695]
[1693604186407,0.17250545,213.39,213.01,0.07697695]
[1693604186611,0.17250545,213.38,213.01,0.07697695]
[1693604186808,0.17250545,213.4,213.01,0.07697695]
[1693604187107,0.17250545,213.39,213.01,0.07697695]
[1693604187303,0.17250545,213.4,213.01,0.07697695]
[1693604187502,0.17250545,213.39,213.01,0.07697695]
[1693604187705,0.17250545,213.38,213.01,0.07697695]
[1693604187908,0.17250545,213.4,213.01,0.07697695]
[1693604188103,0.17250545,213.39,213.01,0.07697695]
[1693604188310,0.17250545,213.38,213.01,0.07697695]
[1693604188510,0.17250545,213.37,213.01,0.07697695]
[1693604188705,0.17250545,213.4,213.01,0.07697695]
[1693604189107,5.27891528,213.4,213.01,0.07697695]
[1693604189307,0.17250545,213.39,213.01,0.07697695]
[1693604189910,0.17250545,213.4,213.01,0.07697695]
[1693604190105,0.17250545,213.39,213.01,0.07697695]
[1693604190411,0.17250545,213.38,213.01,0.07697695]
[1693604190611,0.17250545,213.4,213.01,0.07697695]
[1693604190811,0.17250545,213.39,213.01,0.07697695]
[1693604191113,0.17250545,213.38,213.01,0.07697695]
[1693604191309,0.17250545,213.39,213.01,0.07697695]
[1693604191505,0.17250545,213.38,213.01,0.07697695]
[1693604191811,0.17250545,213.37,213.01,0.07697695]
[1693604192011,0.17250545,213.36,213.01,0.07697695]
[1693604192212,0.17250545,213.35,213.01,0.07697695]
[1693604192510,0.17250545,213.34,213.01,0.07697695]
[1693604192711,0.17250545,213.33,213.01,0.07697695]
[1693604192908,0.17250545,213.32,213.01,0.07697695]
[1693604193108,0.17250545,213.39,213.01,0.07697695]
[1693604193312,0.17250545,213.38,213.01,0.07697695]
[1693604193512,0.17250545,213.39,213.01,0.07697695]
[1693604193711,0.17250545,213.38,213.01,0.07697695]
[1693604193912,0.17250545,213.39,213.01,0.07697695]
[1693604194114,0.17250545,213.38,213.01,0.07697695]
[1693604194307,0.17250545,213.39,213.01,0.07697695]
[1693604194511,0.17250545,213.38,213.01,0.07697695]
[1693604194709,0.17250545,213.37,213.01,0.07697695]
[1693604194907,0.17250545,213.36,213.01,0.07697695]
[1693604195107,0.17250545,213.35,213.01,0.07697695]
[1693604195311,0.17250545,213.39,213.01,0.07697695]
[1693604195611,0.17250545,213.38,213.01,0.07697695]
[1693604195812,0.17250545,213.39,213.01,0.07697695]
[1693604196013,0.17250545,213.38,213.01,0.07697695]
[1693604196208,0.17250545,213.39,213.01,0.07697695]
[1693604200818,0.17250545,213.39,213.02,0.07697695]
[1693604214028,0.17250545,213.38,213.02,0.07697695]
[1693604214226,5.10640983,213.41,213.02,0.07697695]
[1693604214227,0.17250545,213.37,213.02,0.07697695]
[1693604214532,0.17250545,213.36,213.02,0.07697695]
[1693604214732,0.17250545,213.4,213.02,0.07697695]
[1693604214931,0.17250545,213.39,213.02,0.07697695]
[1693604215231,0.17250545,213.38,213.02,0.07697695]
[1693604215430,0.17250545,213.4,213.02,0.07697695]
[1693604215625,0.17250545,213.39,213.02,0.07697695]
[1693604215932,0.17250545,213.38,213.02,0.07697695]
[1693604216131,0.17250545,213.37,213.02,0.07697695]
[1693604216431,5.10640983,213.41,213.02,0.07697695]
[1693604216432,0.17250545,213.36,213.02,0.07697695]
[1693604216632,0.17250545,213.4,213.02,0.07697695]
[1693604216832,0.17250545,213.39,213.02,0.07697695]
[1693604217131,0.17250545,213.38,213.02,0.07697695]
[1693604217325,0.17250545,213.37,213.02,0.07697695]
[1693604217526,0.17250545,213.36,213.02,0.07697695]
[1693604217731,0.17250545,213.4,213.02,0.07697695]
[1693604217928,0.17250545,213.39,213.02,0.07697695]
[1693604218133,0.17250545,213.38,213.02,0.07697695]
[1693604218333,0.17250545,213.37,213.02,0.07697695]
[1693604218531,0.17250545,213.36,213.02,0.07697695]
[1693604218734,0.17250545,213.4,213.02,0.07697695]
[1693604218935,0.17250545,213.39,213.02,0.07697695]
[1693604219137,0.17250545,213.4,213.02,0.07697695]
[1693604219337,0.17250545,213.39,213.02,0.07697695]
[1693604219639,0.17250545,213.38,213.02,0.07697695]
[1693604219838,0.17250545,213.37,213.02,0.07697695]
[1693604220038,0.17250545,213.4,213.02,0.07697695]
[1693604220239,0.17250545,213.39,213.02,0.07697695]
[1693604220534,0.17250545,213.38,213.02,0.07697695]
[1693604220736,0.17250545,213.4,213.02,0.07697695]
[1693604220939,0.17250545,213.39,213.02,0.07697695]
[1693604221139,0.17250545,213.38,213.02,0.07697695]
[1693604221339,0.17250545,213.37,213.02,0.07697695]
[1693604221542,0.17250545,213.4,213.02,0.07697695]
[1693604221743,0.17250545,213.39,213.02,0.07697695]
[1693604222133,0.17250545,213.4,213.02,0.07697695]
[1693604222338,0.17250545,213.39,213.02,0.07697695]
[1693604222536,0.17250545,213.4,213.02,0.07697695]
[1693604222740,0.17250545,213.39,213.02,0.07697695]
[1693604223042,0.17250545,213.38,213.02,0.07697695]
[1693604223240,0.17250545,213.38,212.86,2.34707399]
[1693604223441,0.17250545,213.36,213.02,0.07698321]
[1693604223635,0.17250545,213.35,213.02,0.07698321]
[1693604223841,0.17250545,213.4,213.02,0.07698321]
[1693604224037,0.17250545,213.39,213.02,0.07698321]
[1693604224240,0.17250545,213.38,213.02,0.07698321]
[1693604224440,0.17250545,213.37,213.02,0.07698321]
[1693604224641,0.17250545,213.36,213.02,0.07698321]
[1693604224841,0.17250545,213.4,213.02,0.07698321]
[1693604225040,0.17250545,213.39,213.02,0.07698321]
[1693604225242,0.17250545,213.38,213.02,0.07698321]
[1693604225442,0.17250545,213.4,213.02,0.07698321]
[1693604225636,0.17250545,213.39,213.02,0.07698321]
[1693604225839,0.17250545,213.38,213.02,0.07698321]
[1693604226142,0.17250545,213.37,213.02,0.07698321]
[1693604226338,0.17250545,213.4,213.02,0.07698321]
[1693604226540,0.17250545,213.39,213.02,0.07698321]
[1693604226735,0.17250545,213.38,213.02,0.07698321]
[1693604226938,0.17250545,213.4,213.02,0.07698321]
[1693604227140,0.17250545,213.39,213.02,0.07698321]
[1693604227339,0.17250545,213.38,213.02,0.07698321]
[1693604227541,0.17250545,213.37,213.02,0.07698321]
[1693604227741,0.17250545,213.36,213.02,0.07698321]
[1693604227941,0.17250545,213.4,213.02,0.07698321]
[1693604228141,0.17250545,213.39,213.02,0.07698321]
[1693604228341,0.17250545,213.38,213.02,0.07698321]
[1693604228637,0.17250545,213.37,213.02,0.07698321]
[1693604228843,0.17250545,213.4,213.02,0.07698321]
[1693604229040,0.17250545,213.39,213.02,0.07698321]
[1693604229238,0.17250545,213.38,213.02,0.07698321]
[1693604229445,0.17250545,213.4,213.02,0.07698321]
[1693604229642,0.17250545,213.39,213.02,0.07698321]
[1693604229842,0.17250545,213.38,213.02,0.07698321]
[1693604230046,0.17250545,213.37,213.02,0.07698321]
[1693604230249,0.17250545,213.4,213.02,0.07698321]
[1693604230451,0.17250545,213.39,213.02,0.07698321]
[1693604230643,0.17250545,213.38,213.02,0.07698321]
[1693604230950,0.17250545,213.37,213.02,0.07698321]
[1693604231146,0.17250545,213.36,213.02,0.07698321]
[1693604231341,0.17250545,213.35,213.02,0.07698321]
[1693604231541,0.17250545,213.34,213.02,0.07698321]
[1693604231749,0.17250545,213.4,213.02,0.07698321]
[1693604231948,0.17250545,213.39,213.02,0.07698321]
[1693604232143,0.17250545,213.38,213.02,0.07698321]
[1693604232348,0.17250545,213.37,213.02,0.07698321]
[1693604232548,0.17250545,213.4,213.02,0.07698321]
[1693604232750,0.17250545,213.39,213.02,0.07698321]
[1693604233049,0.17250545,213.38,213.02,0.07698321]
[1693604233249,0.17250545,213.4,213.02,0.07698321]
[1693604233446,0.17250545,213.39,213.02,0.07698321]
[1693604233646,0.17250545,213.38,213.02,0.07698321]
[1693604233843,0.17250545,213.37,213.02,0.07698321]
[1693604234151,0.17250545,213.36,213.02,0.07698321]
[1693604234351,0.17250545,213.4,213.02,0.07698321]
[1693604234549,0.17250545,213.39,213.02,0.07698321]
[1693604234749,0.17250545,213.38,213.02,0.07698321]
[1693604234951,0.17250545,213.37,213.02,0.07698321]
[1693604235151,0.17250545,213.36,213.02,0.07698321]
[1693604235451,0.17250545,213.35,213.02,0.07698321]
[1693604235652,0.17250545,213.4,213.02,0.07698321]
[1693604235857,0.17250545,213.39,213.02,0.07698321]
[1693604236049,0.17250545,213.38,213.02,0.07698321]
[1693604236351,0.17250545,213.37,213.02,0.07698321]
[1693604236551,0.17250545,213.4,213.02,0.07698321]
[1693604236745,0.17250545,213.39,213.02,0.07698321]
[1693604236947,0.17250545,213.38,213.02,0.07698321]
[1693604237147,0.17250545,213.37,213.02,0.07698321]
[1693604237346,0.17250545,213.36,213.02,0.07698321]
[1693604237546,0.17250545,213.4,213.02,0.07698321]
[1693604237749,0.17250545,213.39,213.02,0.07698321]
[1693604237947,0.17250545,213.4,213.02,0.07698321]
[1693604238146,0.17250545,213.39,213.02,0.07698321]
[1693604238351,0.17250545,213.38,213.02,0.07698321]
[1693604238550,0.17250545,213.4,213.02,0.07698321]
[1693604238752,0.17250545,213.39,213.02,0.07698321]
[1693604238952,0.17250545,213.38,213.02,0.07698321]
[1693604239253,0.17250545,213.37,213.02,0.07698321]
[1693604239454,0.17250545,213.4,213.02,0.07698321]
[1693604239653,0.17250545,213.39,213.02,0.07698321]
[1693604239856,0.17250545,213.4,213.02,0.07698321]
[1693604240054,0.17250545,213.39,213.02,0.07698321]
[1693604240353,0.17250545,213.38,213.02,0.07698321]
[1693604240554,0.17250545,213.4,213.02,0.07698321]
[1693604240755,0.17250545,213.39,213.02,0.07698321]
[1693604240948,0.17250545,213.4,213.02,0.07698321]
[1693604241154,0.17250545,213.39,213.02,0.07698321]
[1693604241354,0.17250545,213.38,213.02,0.07698321]
[1693604241655,0.17250545,213.37,213.02,0.07698321]
[1693604241855,0.17250545,213.36,213.02,0.07698321]
[1693604242055,0.17250545,213.4,213.02,0.07698321]
[1693604242256,0.17250545,213.39,213.02,0.07698321]
[1693604242450,0.17250545,213.38,213.02,0.07698321]
[1693604242654,0.17250545,213.4,213.02,0.07698321]
[1693604242857,0.17250545,213.39,213.02,0.07698321]
[1693604243056,0.17250545,213.4,213.02,0.07698321]
[1693604243256,0.17250545,213.39,213.02,0.07698321]
[1693604243457,0.17250545,213.38,213.02,0.07698321]
[1693604243657,0.17250545,213.4,213.02,0.07698321]
[1693604243958,0.17250545,213.39,213.02,0.07698321]
[1693604244153,0.17250545,213.4,213.02,0.07698321]
[1693604244355,0.17250545,213.39,213.02,0.07698321]
[1693604244555,0.17250545,213.4,213.02,0.07698321]
[1693604244756,0.17250545,213.39,213.02,0.07698321]
[1693604244956,0.17250545,213.38,213.02,0.07698321]
[1693604245158,0.17250545,213.4,213.02,0.07698321]
[1693604245354,0.17250545,213.39,213.02,0.07698321]
[1693604245559,0.17250545,213.38,213.02,0.07698321]
[1693604245859,0.17250545,213.37,213.02,0.07698321]
[1693604246054,5.11047962,213.41,213.02,0.07698321]
[1693604246055,0.17250545,213.36,213.02,0.07698321]
[1693604246256,0.17250545,213.35,213.02,0.07698321]
[1693604246459,0.17250545,213.34,213.02,0.07698321]
[1693604246759,0.17250545,213.33,213.02,0.07698321]
[1693604246959,0.17250545,213.32,213.02,0.07698321]
[1693604247159,0.17250545,213.4,213.02,0.07698321]
[1693604247360,0.17250545,213.39,213.02,0.07698321]
[1693604247660,0.17250545,213.38,213.02,0.07698321]
[1693604247861,0.17250545,213.37,213.02,0.07698321]
[1693604248053,0.17250545,213.36,213.02,0.07698321]
[1693604248258,0.17250545,213.35,213.02,0.07698321]
[1693604248455,0.17250545,213.34,213.02,0.07698321]
[1693604248760,0.17250545,213.33,213.02,0.07698321]
[1693604248961,0.17250545,213.32,213.02,0.07698321]
[1693604249155,5.28298507,213.4,213.02,0.07698321]
[1693604249361,0.17250545,213.39,213.02,0.07698321]
[1693604250162,5.11047962,213.41,213.02,0.07698321]
[1693604250163,0.17250545,213.38,213.02,0.07698321]
[1693604250461,0.17250545,213.37,213.02,0.07698321]
[1693604250660,0.17250545,213.36,213.02,0.07698321]
[1693604250859,0.17250545,213.4,213.02,0.07698321]
[1693604251155,0.17250545,213.39,213.02,0.07698321]
[1693604251355,0.17250545,213.4,213.02,0.07698321]
[1693604251561,0.17250545,213.39,213.02,0.07698321]
[1693604251761,0.17250545,213.4,213.02,0.07698321]
[1693604251955,0.17250545,213.39,213.02,0.07698321]
[1693604252158,0.17250545,213.4,213.03,0.07698321]
[1693604252359,0.17250545,213.39,213.03,0.07698321]
[1693604252560,0.17250545,213.41,213.03,0.07698321]
[1693604252755,0.17250545,213.4,213.03,0.07698321]
[1693604252962,0.17250545,213.41,213.02,0.07698321]
[1693604253261,0.17250545,213.4,213.02,0.07698321]
[1693604253460,0.17250545,213.39,213.02,0.07698321]
[1693604253657,0.17250545,213.38,213.02,0.07698321]
[1693604253860,0.17250545,213.37,213.02,0.07698321]
[1693604254161,0.17250545,213.36,213.02,0.07698321]
[1693604254461,0.17250545,213.35,213.02,0.07698321]
[1693604254660,0.17250545,213.34,213.02,0.07698321]
[1693604254961,0.17250545,213.33,213.02,0.07698321]
[1693604255162,0.17250545,213.32,213.02,0.07698321]
[1693604255362,0.17250545,213.4,213.02,0.07698321]
[1693604257960,0.17250545,213.4,213.03,0.07698321]
[1693604258160,0.17250545,213.4,213.02,0.07698321]
[1693604259062,0.17250545,213.4,213.03,0.07698321]
[1693604259463,0.17250545,213.4,213.02,0.07698321]
[1693604259964,0.17250545,213.4,213.03,0.07698321]
[1693604260265,0.17250545,213.4,213.02,0.07698321]
[1693604267161,0.17250545,213.4,213.01,0.07698321]